fUST/lending_fUST_20250608
["ID","MTS","AMOUNT","RATE_DAILY","PERIOD"]
[364975525,1749372655375,-0.017884,0.00023287,4]
[364975526,1749372655387,-784.5512981,0.00023287,4]
[364975527,1749372655396,-40.40324537,0.00023561,4]
[364975528,1749372655408,-1242.95675463,0.00023561,4]
[364975529,1749372655417,-3104.34105366,0.0002378,2]
[364975530,1749372655564,-150.0,0.00020897,2]
[364975531,1749372655574,-243.73085203,0.0002378,2]
[364975532,1749372655583,-2788.9140453,0.0002378,2]
[364975533,1749372655594,-14997.75318275,0.0002378,2]
[364975534,1749372655612,-13432.90230832,0.0002378,2]
[364975535,1749372655621,-18085.96470382,0.0002378,5]
[364975536,1749372655632,-9458.20690045,0.0002378,5]
[364975537,1749372655642,-2663.13424647,0.0002378,5]
[364975538,1749372655822,-500.0,0.00016376,2]
[364975539,1749372655831,-274.90751728,0.00016376,2]
[364975540,1749372655843,-225.09248272,0.00016376,2]
[364975541,1749372655852,-338.55331716,0.00016376,2]
[364975542,1749372655862,-500.0,0.00016376,2]
[364975543,1749372655871,-500.0,0.00016376,2]
[364975544,1749372655884,-500.0,0.00016376,2]
[364975545,1749372655893,-500.0,0.00016376,2]
[364975546,1749372655902,-500.0,0.00016376,2]
[364975547,1749372655912,-460.0,0.00019178,2]
[364975548,1749372655922,-449234.4840645,0.0002378,5]
[364975549,1749372655934,-19122.59509104,0.0002378,5]
[364975550,1749372751132,14000.0,0.00024641,30]
[364975551,1749372835339,154.22519531,7e-07,2]
[364975552,1749372835443,154.22519531,7e-07,2]
[364975553,1749372835539,154.22519531,7e-07,2]
[364975554,1749372855263,1003.91601792,0.0002547,120]
[364975555,1749372922162,610.71136002,0.00015883,2]
[364975556,1749372945898,250.0,0.00015426,2]
[364975557,1749372951185,1532.6291512,0.00015645,2]
[364975558,1749372961374,1000.0,0.00025,120]
[364975560,1749372981721,1000.0,0.00025,120]
[364975562,1749373021788,5000.0,0.00016,2]
[364975563,1749373084157,3255.9189592,0.00015373,2]
[364975564,1749373223985,234.860594,0.00015881,2]
[364975565,1749373224254,248.99651901,0.00015881,2]
[364975566,1749373225902,1745.7072214,0.00016,2]
[364975567,1749373225926,3254.2927786,0.00016,2]
[364975568,1749373236943,324.502889,0.00013699,2]
[364975570,1749373299505,182.405092,0.00015494,2]
[364975571,1749373299623,182.405092,0.00015494,31]
[364975572,1749373299806,182.405092,0.00015494,61]
[364975573,1749373299994,182.405092,0.00015494,90]
[364975574,1749373300224,182.405092,0.00015494,120]
[364975575,1749373428443,5000.0,0.00016,2]
[364975576,1749373436277,299.48602012,7e-07,2]
[364975577,1749373467660,5788.14897028,0.0001537,2]
[364975578,1749373467682,14848.83575,0.0001537,2]
[364975579,1749373467703,14848.83575,0.0001537,2]
[364975580,1749373467727,14848.83575,0.0001537,2]
[364975581,1749373467750,2341.65187362,0.0001537,2]
[364975599,1749373514132,10000.0,0.00015371,2]
[364975600,1749373525645,249.96464083,0.00015878,2]
[364975602,1749373613424,2257.21923555,0.00015367,2]
[364975603,1749373613448,14848.83575,0.00015367,2]
[364975604,1749373613478,7793.94501445,0.00015367,2]
[364975610,1749373642222,780.1821343,0.00015363,2]
[364975623,1749373681739,5770.0,0.00016,2]
[364975625,1749373691119,504.70860125,0.00016,2]
[364975626,1749373691141,498.29139875,0.00016,2]
[364975639,1749373821730,5000.0,0.00016,2]
[364975641,1749373826729,243.191997,0.00015869,2]
[364975705,1749373832351,-178.68803489,0.00016274,2]
[364975707,1749373832361,-2544.71113861,0.00016359,2]
[364975709,1749373832373,-1996.875,0.00016359,2]
[364975712,1749373832386,-743.37687378,0.00016359,2]
[364975714,1749373832399,-4299.525,0.00016359,2]
[364975716,1749373832411,-6415.51198761,0.00016359,2]
[364975718,1749373832421,-8126.29645066,0.00016359,2]
[364975720,1749373832431,-300.0,0.00016359,2]
[364975722,1749373832444,-300.0,0.00016359,2]
[364975724,1749373832454,-300.0,0.00016359,2]
[364975727,1749373832465,-1200.0,0.00016359,2]
[364975729,1749373832475,-300.0,0.00016359,2]
[364975731,1749373832487,-34389.81221254,0.0001636,2]
[364975733,1749373832497,-500.0,0.0001636,2]
[364975735,1749373832506,-500.0,0.0001636,2]
[364975737,1749373832518,-500.0,0.0001636,2]
[364975739,1749373832529,-500.0,0.0001636,2]
[364975741,1749373832539,-500.0,0.0001636,2]
[364975743,1749373832549,-500.0,0.0001636,2]
[364975745,1749373832559,-500.0,0.0001636,2]
[364975747,1749373832569,-500.0,0.0001636,2]
[364975750,1749373832580,-500.0,0.0001636,2]
[364975752,1749373832590,-499.55785059,0.0001636,2]
[364975754,1749373832600,-500.0,0.0001636,2]
[364975756,1749373832611,-500.0,0.0001636,2]
[364975758,1749373832621,-500.0,0.0001636,2]
[364975760,1749373832631,-500.0,0.0001636,2]
[364975762,1749373832641,-500.0,0.0001636,2]
[364975764,1749373832651,-500.0,0.0001636,2]
[364975766,1749373832661,-500.0,0.0001636,2]
[364975768,1749373832670,-500.0,0.0001636,2]
[364975770,1749373832680,-500.0,0.0001636,2]
[364975772,1749373832689,-500.0,0.0001636,2]
[364975774,1749373832698,-500.0,0.0001636,2]
[364975776,1749373832708,-189.44435043,0.0001636,2]
[364975778,1749373832717,-500.0,0.0001636,2]
[364975780,1749373832726,-500.10307551,0.0001636,2]
[364975782,1749373832737,-500.0,0.0001636,2]
[364975784,1749373832747,-500.0,0.0001636,2]
[364975786,1749373832757,-500.0,0.0001636,2]
[364975788,1749373832767,-500.0,0.0001636,2]
[364975790,1749373832776,-500.0,0.0001636,2]
[364975792,1749373832786,-500.0,0.0001636,2]
[364975794,1749373832795,-500.0,0.0001636,2]
[364975796,1749373832805,-500.0,0.0001636,2]
[364975798,1749373832815,-500.0,0.0001636,2]
[364975800,1749373832825,-349.93571769,0.0001636,2]
[364975802,1749373832835,-500.0,0.0001636,2]
[364975804,1749373832845,-500.0,0.0001636,2]
[364975807,1749373832854,-493.34499281,0.0001636,2]
[364975809,1749373832864,-500.0,0.0001636,2]
[364975811,1749373832874,-500.0,0.0001636,2]
[364975813,1749373832884,-500.0,0.0001636,2]
[364975815,1749373832894,-500.0,0.0001636,2]
[364975817,1749373832904,-500.0,0.0001636,2]
[364975819,1749373832914,-500.0,0.0001636,2]
[364975821,1749373832923,-500.0,0.0001636,2]
[364975823,1749373832933,-500.0,0.0001636,2]
[364975824,1749373832942,-500.0,0.0001636,2]
[364975826,1749373832951,-500.0,0.0001636,2]
[364975828,1749373832961,-500.0,0.0001636,2]
[364975830,1749373832971,-500.0,0.0001636,2]
[364975832,1749373832980,-211.76223729,0.0001636,2]
[364975834,1749373832990,-500.0,0.0001636,2]
[364975835,1749373832999,-500.0,0.0001636,2]
[364975837,1749373833009,-157.68997045,0.0001636,2]
[364975838,1749373833019,-500.0,0.0001636,2]
[364975840,1749373833029,-500.0,0.0001636,2]
[364975842,1749373833040,-500.0,0.0001636,2]
[364975844,1749373833050,-500.0,0.0001636,2]
[364975846,1749373833061,-608.18728651,0.0001636,2]
[364975847,1749373833071,-500.0,0.0001636,2]
[364975849,1749373833081,-500.0,0.0001636,2]
[364975850,1749373833091,-500.0,0.0001636,2]
[364975851,1749373833101,-500.0,0.0001636,2]
[364975852,1749373833112,-500.0,0.0001636,2]
[364975853,1749373833122,-500.0,0.0001636,2]
[364975854,1749373833133,-500.0,0.0001636,2]
[364975855,1749373833143,-500.0,0.0001636,2]
[364975856,1749373833152,-500.0,0.0001636,2]
[364975857,1749373833163,-500.0,0.0001636,2]
[364975858,1749373833173,-500.0,0.0001636,2]
[364975859,1749373833183,-500.0,0.0001636,2]
[364975860,1749373833193,-500.0,0.0001636,2]
[364975861,1749373833203,-500.0,0.0001636,2]
[364975862,1749373833214,-500.0,0.0001636,2]
[364975863,1749373833224,-500.0,0.0001636,2]
[364975864,1749373833234,-500.0,0.0001636,2]
[364975865,1749373833245,-500.0,0.0001636,2]
[364975866,1749373833256,-500.0,0.0001636,2]
[364975867,1749373833266,-500.0,0.0001636,2]
[364975868,1749373833277,-339.48098514,0.0001636,2]
[364975869,1749373833291,-160.51901486,0.0001636,2]
[364975870,1749373833302,-500.0,0.0001636,2]
[364975871,1749373833312,-500.0,0.0001636,2]
[364975872,1749373833323,-500.0,0.0001636,2]
[364975873,1749373833333,-0.73508994,0.0001636,2]
[364975886,1749373838014,-5000.0,0.00016196,2]
[364975887,1749373838025,-499.26491006,0.0001636,2]
[364975888,1749373838035,-500.0,0.0001636,2]
[364975889,1749373838045,-500.0,0.0001636,2]
[364975890,1749373838055,-500.0,0.0001636,2]
[364975891,1749373838066,-500.0,0.0001636,2]
[364975892,1749373838076,-500.0,0.0001636,2]
[364975893,1749373838086,-500.0,0.0001636,2]
[364975894,1749373838096,-500.0,0.0001636,2]
[364975895,1749373838228,-500.0,0.0001636,2]
[364975896,1749373838239,-554.23680769,0.0001636,2]
[364975897,1749373838249,-500.0,0.0001636,2]
[364975898,1749373838259,-500.0,0.0001636,2]
[364975899,1749373838268,-500.0,0.0001636,2]
[364975900,1749373838277,-500.0,0.0001636,2]
[364975901,1749373838287,-500.0,0.0001636,2]
[364975902,1749373838297,-500.0,0.0001636,2]
[364975903,1749373838307,-500.0,0.0001636,2]
[364975904,1749373838316,-500.0,0.0001636,2]
[364975905,1749373838326,-500.0,0.0001636,2]
[364975906,1749373838335,-500.0,0.0001636,2]
[364975907,1749373838346,-500.0,0.0001636,2]
[364975908,1749373838355,-500.0,0.0001636,2]
[364975909,1749373838365,-500.0,0.0001636,2]
[364975910,1749373838375,-500.0,0.0001636,2]
[364975911,1749373838385,-500.0,0.0001636,2]
[364975912,1749373838396,-500.0,0.0001636,2]
[364975913,1749373838406,-500.0,0.0001636,2]
[364975914,1749373838416,-500.0,0.0001636,2]
[364975915,1749373838435,-500.0,0.0001636,2]
[364975916,1749373838449,-500.0,0.0001636,2]
[364975917,1749373838459,-500.0,0.0001636,2]
[364975918,1749373838469,-500.0,0.0001636,2]
[364975919,1749373838479,-500.0,0.0001636,2]
[364975920,1749373838490,-500.0,0.0001636,2]
[364975921,1749373838500,-500.0,0.0001636,2]
[364975922,1749373838510,-500.0,0.0001636,2]
[364975923,1749373838519,-500.0,0.0001636,2]
[364975924,1749373838530,-176.09619661,0.0001636,2]
[364975925,1749373838540,-500.0,0.0001636,2]
[364975926,1749373838550,-500.0,0.0001636,2]
[364975927,1749373838559,-500.0,0.0001636,2]
[364975928,1749373838569,-500.0,0.0001636,2]
[364975929,1749373838579,-500.0,0.0001636,2]
[364975930,1749373838588,-249.68526655,0.0001636,2]
[364975931,1749373838597,-500.0,0.0001636,2]
[364975932,1749373838607,-500.0,0.0001636,2]
[364975933,1749373838617,-500.0,0.0001636,2]
[364975934,1749373838626,-500.0,0.0001636,2]
[364975935,1749373838636,-500.0,0.0001636,2]
[364975936,1749373838647,-500.0,0.0001636,2]
[364975937,1749373838657,-300.0,0.00016361,2]
[364975938,1749373838666,-160.0,0.00016374,2]
[364975939,1749373838675,-500.0,0.000164,2]
[364975940,1749373838685,-16000.0,0.00016907,2]
[364975941,1749373838695,-1000.0,0.00016948,2]
[364975942,1749373838705,-16000.0,0.00017455,2]
[364975943,1749373838714,-1500.0,0.00017496,2]
[364975944,1749373838724,-1042.546105,0.000176,2]
[364975945,1749373838733,-420.0,0.00017879,2]
[364975946,1749373838743,-194.0,0.00017879,2]
[364975947,1749373838753,-420.0,0.00017882,2]
[364975948,1749373838763,-1283.0,0.00017969,2]
[364975949,1749373838773,-178.68803488,0.0001803,2]
[364975950,1749373838782,-861.4206246,0.00018082,2]
[364975951,1749373838792,-417.69,0.000184,14]
[364975952,1749373838802,-10437.971312,0.00018704,2]
[364975953,1749373838811,-4276.56918,0.00019177,2]
[364975954,1749373838820,-430.0,0.00019178,2]
[364975955,1749373838830,-433.89463576,0.00019178,2]
[364975956,1749373838840,-317.10853084,0.00019178,2]
[364975957,1749373838849,-208.09,0.00019178,2]
[364975958,1749373838858,-440.0,0.00019178,2]
[364975959,1749373838867,-440.0,0.00019178,2]
[364975960,1749373838877,-165.34009342,0.00019178,2]
[364975961,1749373838886,-261.75909876,0.00019178,2]
[364975962,1749373838895,-430.0,0.00019178,2]
[364975963,1749373838905,-440.0,0.00019178,2]
[364975964,1749373838914,-440.0,0.00019178,2]
[364975965,1749373838924,-440.0,0.00019178,2]
[364975966,1749373838933,-440.0,0.00019178,2]
[364975967,1749373838942,-440.0,0.00019178,2]
[364975968,1749373838951,-440.0,0.00019178,2]
[364975969,1749373838961,-430.0,0.00019178,2]
[364975970,1749373838971,-430.0,0.00019178,2]
[364975971,1749373838981,-440.0,0.00019178,2]
[364975972,1749373838990,-430.0,0.00019178,2]
[364975973,1749373838999,-337.31978493,0.00019178,2]
[364975974,1749373839009,-450.0,0.00019178,2]
[364975975,1749373839019,-450.0,0.00019178,2]
[364975976,1749373839028,-440.0,0.00019178,2]
[364975977,1749373839038,-440.0,0.00019178,2]
[364975978,1749373839048,-453.12221441,0.00019178,2]
[364975979,1749373839057,-300.0,0.00019178,2]
[364975980,1749373839067,-430.0,0.00019178,2]
[364975981,1749373839076,-440.0,0.00019178,2]
[364975982,1749373839085,-440.0,0.00019178,2]
[364975983,1749373839095,-430.0,0.00019178,2]
[364975984,1749373839104,-440.0,0.00019178,2]
[364975985,1749373839114,-440.0,0.00019178,2]
[364975986,1749373839123,-440.0,0.00019178,2]
[364975987,1749373839134,-440.0,0.00019178,2]
[364975988,1749373839144,-625.58,0.00019178,2]
[364975989,1749373839154,-440.0,0.00019178,2]
[364975990,1749373839163,-440.0,0.00019178,2]
[364975991,1749373839173,-440.0,0.00019178,2]
[364975992,1749373839186,-440.0,0.00019178,2]
[364975993,1749373839195,-440.0,0.00019178,2]
[364975994,1749373839205,-440.0,0.00019178,2]
[364975995,1749373839215,-749.42,0.00019178,2]
[364975996,1749373839224,-440.0,0.00019178,2]
[364975997,1749373839233,-440.0,0.00019178,2]
[364975998,1749373839243,-440.0,0.00019178,2]
[364975999,1749373839253,-440.0,0.00019178,2]
[364976000,1749373839263,-440.0,0.00019178,2]
[364976001,1749373839272,-440.0,0.00019178,2]
[364976002,1749373839282,-450.0,0.00019178,2]
[364976003,1749373839292,-440.0,0.00019178,2]
[364976004,1749373839302,-440.0,0.00019178,2]
[364976005,1749373839313,-440.0,0.00019178,2]
[364976006,1749373839322,-744.91,0.00019178,2]
[364976007,1749373839332,-430.0,0.00019178,2]
[364976008,1749373839342,-440.0,0.00019178,2]
[364976009,1749373839352,-440.0,0.00019178,2]
[364976010,1749373839361,-440.0,0.00019178,2]
[364976011,1749373839371,-440.0,0.00019178,2]
[364976012,1749373839380,-440.0,0.00019178,2]
[364976013,1749373839389,-440.0,0.00019178,2]
[364976014,1749373839399,-440.0,0.00019178,2]
[364976015,1749373839408,-440.0,0.00019178,2]
[364976016,1749373839419,-440.0,0.00019178,2]
[364976017,1749373839429,-440.0,0.00019178,2]
[364976018,1749373839439,-788.08,0.00019178,2]
[364976019,1749373839451,-628.16,0.00019178,2]
[364976020,1749373839461,-440.0,0.00019178,2]
[364976021,1749373839471,-440.0,0.00019178,2]
[364976022,1749373839482,-346.93,0.00019178,2]
[364976023,1749373839492,-440.0,0.00019178,2]
[364976024,1749373839502,-440.0,0.00019178,2]
[364976025,1749373839512,-440.0,0.00019178,2]
[364976026,1749373839524,-440.0,0.00019178,2]
[364976027,1749373839534,-440.0,0.00019178,2]
[364976028,1749373839544,-489.86,0.00019178,2]
[364976029,1749373839553,-379.15473532,0.00019178,2]
[364976030,1749373839565,-753.64,0.00019178,2]
[364976031,1749373839574,-440.0,0.00019178,2]
[364976032,1749373839585,-440.0,0.00019178,2]
[364976033,1749373839595,-440.0,0.00019178,2]
[364976034,1749373839605,-430.0,0.00019178,2]
[364976035,1749373839615,-440.0,0.00019178,2]
[364976036,1749373839624,-1373.63,0.00019178,2]
[364976037,1749373839634,-2215.93,0.00019178,2]
[364976038,1749373839644,-2140.09,0.00019178,2]
[364976040,1749373839653,-289.92,0.00019178,2]
[364976041,1749373839662,-440.0,0.00019178,2]
[364976042,1749373839677,-514.59,0.00019178,2]
[364976043,1749373839686,-431.48573508,0.00019178,2]
[364976044,1749373839695,-2021.55,0.00019178,2]
[364976045,1749373839706,-440.0,0.00019178,2]
[364976046,1749373839716,-440.0,0.00019178,2]
[364976047,1749373839726,-441.59428639,0.00019178,2]
[364976048,1749373839735,-644.76,0.00019178,2]
[364976049,1749373839745,-440.0,0.00019178,2]
[364976050,1749373839755,-1817.13,0.00019178,2]
[364976051,1749373839765,-571.59,0.00019178,2]
[364976052,1749373839774,-450.0,0.00019178,2]
[364976053,1749373839784,-780.04,0.00019178,2]
[364976054,1749373839794,-440.0,0.00019178,2]
[364976055,1749373839804,-440.0,0.00019178,2]
[364976056,1749373839814,-440.0,0.00019178,2]
[364976057,1749373839826,-440.0,0.00019178,2]
[364976058,1749373839835,-517.28720693,0.00019178,2]
[364976059,1749373839845,-420.0,0.00019178,2]
[364976060,1749373839854,-440.0,0.00019178,2]
[364976061,1749373839865,-1080.26,0.00019178,2]
[364976062,1749373839875,-440.0,0.00019178,2]
[364976063,1749373839884,-440.0,0.00019178,2]
[364976064,1749373839894,-440.0,0.00019178,2]
[364976065,1749373839903,-330.60566109,0.00019178,2]
[364976066,1749373839913,-440.0,0.00019178,2]
[364976067,1749373839923,-1836.24,0.00019178,2]
[364976068,1749373839933,-430.0,0.00019178,2]
[364976069,1749373839942,-516.13,0.00019178,2]
[364976070,1749373839953,-431.9008485,0.00019178,2]
[364976071,1749373839963,-440.0,0.00019178,2]
[364976072,1749373839974,-440.0,0.00019178,2]
[364976073,1749373839986,-440.0,0.00019452,2]
[364976074,1749373839996,-440.0,0.00019452,2]
[364976075,1749373840007,-440.0,0.00019452,2]
[364976076,1749373840016,-176.39120426,0.00019452,2]
[364976077,1749373840026,-440.0,0.00019452,2]
[364976079,1749373840036,-440.0,0.00019452,2]
[364976080,1749373840046,-440.0,0.00019452,2]
[364976081,1749373840055,-368.62116447,0.00019452,2]
[364976082,1749373840066,-440.0,0.00019452,2]
[364976083,1749373840076,-625.58,0.00019452,2]
[364976084,1749373840085,-440.0,0.00019452,2]
[364976085,1749373840094,-440.0,0.00019452,2]
[364976086,1749373840104,-440.0,0.00019452,2]
[364976087,1749373840115,-440.0,0.00019452,2]
[364976088,1749373840125,-440.0,0.00019452,2]
[364976089,1749373840135,-749.42,0.00019452,2]
[364976090,1749373840147,-440.0,0.00019452,2]
[364976091,1749373840156,-440.0,0.00019452,2]
[364976092,1749373840166,-440.0,0.00019452,2]
[364976093,1749373840176,-440.0,0.00019452,2]
[364976094,1749373840185,-440.0,0.00019452,2]
[364976095,1749373840195,-744.91,0.00019452,2]
[364976096,1749373840205,-258.12,0.00019452,2]
[364976097,1749373840217,-440.0,0.00019452,2]
[364976098,1749373840226,-440.0,0.00019452,2]
[364976099,1749373840236,-440.0,0.00019452,2]
[364976100,1749373840246,-440.0,0.00019452,2]
[364976101,1749373840255,-440.0,0.00019452,2]
[364976102,1749373840265,-440.0,0.00019452,2]
[364976103,1749373840275,-788.08,0.00019452,2]
[364976104,1749373840285,-628.16,0.00019452,2]
[364976105,1749373840295,-588.39,0.00019452,2]
[364976106,1749373840305,-517.41816201,0.00019452,2]
[364976107,1749373840314,-440.0,0.00019452,2]
[364976108,1749373840324,-482.46900848,0.00019452,2]
[364976109,1749373840334,-440.0,0.00019452,2]
[364976110,1749373840343,-440.0,0.00019452,2]
[364976111,1749373840353,-489.86,0.00019452,2]
[364976112,1749373840363,-753.64,0.00019452,2]
[364976113,1749373840372,-516.7,0.00019452,2]
[364976114,1749373840382,-433.93209974,0.00019452,2]
[364976115,1749373840391,-440.0,0.00019452,2]
[364976116,1749373840401,-1373.63,0.00019452,2]
[364976117,1749373840411,-2215.93,0.00019452,2]
[364976118,1749373840422,-2140.09,0.00019452,2]
[364976119,1749373840432,-514.59,0.00019452,2]
[364976120,1749373840443,-2021.55,0.00019452,2]
[364976121,1749373840455,-440.0,0.00019452,2]
[364976122,1749373840465,-644.76,0.00019452,2]
[364976123,1749373840475,-440.0,0.00019452,2]
[364976124,1749373840485,-1817.13,0.00019452,2]
[364976125,1749373840495,-571.59,0.00019452,2]
[364976126,1749373840505,-780.04,0.00019452,2]
[364976127,1749373840515,-440.0,0.00019452,2]
[364976128,1749373840525,-1080.26,0.00019452,2]
[364976129,1749373840535,-440.0,0.00019452,2]
[364976130,1749373840544,-440.0,0.00019452,2]
[364976131,1749373840554,-440.0,0.00019452,2]
[364976132,1749373840563,-1836.24,0.00019452,2]
[364976134,1749373840573,-516.13,0.00019452,2]
[364976136,1749373840583,-440.0,0.00019452,2]
[364976137,1749373840592,-587.0,0.00019541,2]
[364976138,1749373840602,-587.0,0.00019543,2]
[364976139,1749373840612,-160.0,0.0001956,2]
[364976140,1749373840621,-842.5625,0.00019564,2]
[364976141,1749373840631,-423.98131849,0.00019564,2]
[364976142,1749373840641,-423.01384174,0.00019564,2]
[364976143,1749373840652,-229.60437222,0.00019564,2]
[364976144,1749373840662,-213.05153702,0.00019564,2]
[364976145,1749373840671,-160.0,0.00019564,2]
[364976146,1749373840682,-160.0,0.00019564,2]
[364976147,1749373840691,-160.0,0.00019564,2]
[364976148,1749373840701,-11853.97844947,0.00019575,2]
[364976149,1749373840711,-440.0,0.00019726,2]
[364976150,1749373840721,-440.0,0.00019726,2]
[364976151,1749373840733,-440.0,0.00019726,2]
[364976152,1749373840742,-440.0,0.00019726,2]
[364976153,1749373840752,-440.0,0.00019726,2]
[364976154,1749373840762,-440.0,0.00019726,2]
[364976155,1749373840772,-279.07774906,0.00019726,2]
[364976156,1749373840781,-625.58,0.00019726,2]
[364976157,1749373840794,-440.0,0.00019726,2]
[364976158,1749373840805,-4.28301997,0.00019726,2]
[364976159,1749373840822,-435.71698003,0.00019726,2]
[364976160,1749373840832,-440.0,0.00019726,2]
[364976161,1749373840950,-440.0,0.00019726,2]
[364976162,1749373840960,-440.0,0.00019726,2]
[364976163,1749373840970,-749.42,0.00019726,2]
[364976164,1749373840979,-440.0,0.00019726,2]
[364976165,1749373840989,-440.0,0.00019726,2]
[364976166,1749373840998,-440.0,0.00019726,2]
[364976167,1749373841008,-440.0,0.00019726,2]
[364976168,1749373841017,-440.0,0.00019726,2]
[364976169,1749373841027,-744.91,0.00019726,2]
[364976170,1749373841036,-440.0,0.00019726,2]
[364976171,1749373841046,-440.0,0.00019726,2]
[364976172,1749373841056,-440.0,0.00019726,2]
[364976173,1749373841065,-440.0,0.00019726,2]
[364976174,1749373841074,-440.0,0.00019726,2]
[364976175,1749373841083,-430.0,0.00019726,2]
[364976176,1749373841093,-788.08,0.00019726,2]
[364976177,1749373841103,-628.16,0.00019726,2]
[364976178,1749373841113,-440.0,0.00019726,2]
[364976179,1749373841122,-440.0,0.00019726,2]
[364976180,1749373841132,-489.86,0.00019726,2]
[364976181,1749373841141,-753.64,0.00019726,2]
[364976182,1749373841150,-440.0,0.00019726,2]
[364976183,1749373841159,-1373.63,0.00019726,2]
[364976184,1749373841169,-2215.93,0.00019726,2]
[364976185,1749373841178,-2140.09,0.00019726,2]
[364976186,1749373841187,-514.59,0.00019726,2]
[364976187,1749373841198,-2021.55,0.00019726,2]
[364976188,1749373841208,-644.76,0.00019726,2]
[364976189,1749373841218,-440.0,0.00019726,2]
[364976190,1749373841227,-1817.13,0.00019726,2]
[364976191,1749373841238,-571.59,0.00019726,2]
[364976192,1749373841247,-780.04,0.00019726,2]
[364976193,1749373841257,-1080.26,0.00019726,2]
[364976194,1749373841266,-440.0,0.00019726,2]
[364976195,1749373841276,-440.0,0.00019726,2]
[364976196,1749373841286,-1836.24,0.00019726,2]
[364976197,1749373841296,-516.13,0.00019726,2]
[364976198,1749373841307,-440.0,0.00019726,2]
[364976199,1749373841316,-178.68803488,0.00019787,2]
[364976200,1749373841326,-1000.0,0.0002,20]
[364976201,1749373841335,-440.0,0.0002,2]
[364976202,1749373841345,-440.0,0.0002,2]
[364976203,1749373841355,-440.0,0.0002,2]
[364976204,1749373841366,-440.0,0.0002,2]
[364976205,1749373841376,-440.0,0.0002,2]
[364976206,1749373841387,-440.0,0.0002,2]
[364976207,1749373841396,-625.58,0.0002,2]
[364976208,1749373841407,-440.0,0.0002,2]
[364976209,1749373841417,-440.0,0.0002,2]
[364976210,1749373841427,-440.0,0.0002,2]
[364976211,1749373841437,-440.0,0.0002,2]
[364976212,1749373841449,-440.0,0.0002,2]
[364976213,1749373841459,-749.42,0.0002,2]
[364976214,1749373841469,-440.0,0.0002,2]
[364976215,1749373841479,-543.4865294,0.0002,2]
[364976216,1749373841491,-440.0,0.0002,2]
[364976217,1749373841502,-440.0,0.0002,2]
[364976218,1749373841511,-440.0,0.0002,2]
[364976219,1749373841521,-744.91,0.0002,2]
[364976220,1749373841533,-440.0,0.0002,2]
[364976221,1749373841542,-440.0,0.0002,2]
[364976222,1749373841552,-440.0,0.0002,2]
[364976223,1749373841562,-440.0,0.0002,2]
[364976224,1749373841572,-440.0,0.0002,2]
[364976225,1749373841581,-788.08,0.0002,2]
[364976226,1749373841591,-628.16,0.0002,2]
[364976227,1749373841601,-430.86038447,0.0002,2]